fUSD/lending_fUSD_20250611
["ID","MTS","AMOUNT","RATE_DAILY","PERIOD"]
[365364504,1749619840623,-460.0,0.00016438,2]
[365364506,1749619840632,-460.0,0.00016438,2]
[365364508,1749619840641,-490.0,0.00016438,2]
[365364510,1749619840651,-460.97805438,0.00016438,2]
[365364512,1749619840660,-461.92715937,0.00016438,2]
[365364514,1749619840670,-56.35663675,0.00016438,2]
[365364518,1749619840695,-404.61176805,0.00016438,2]
[365364520,1749619840705,-51.85760951,0.00016438,2]
[365364522,1749619840717,-302.0,0.00016438,2]
[365364524,1749619840729,-136.14239049,0.00016438,2]
[365364526,1749619840739,-490.0,0.00016438,2]
[365364528,1749619840748,-490.0,0.00016438,2]
[365364530,1749619840757,-421.10443222,0.00016438,2]
[365364532,1749619840767,-461.55310855,0.00016438,2]
[365364534,1749619840776,-490.0,0.00016438,2]
[365364536,1749619840785,-462.39111902,0.00016438,2]
[365364538,1749619840795,-422.83481855,0.00016438,2]
[365364540,1749619840805,-490.0,0.00016438,2]
[365364542,1749619840814,-490.0,0.00016438,2]
[365364544,1749619840823,-422.11523457,0.00016438,2]
[365364546,1749619840833,-423.57329602,0.00016438,2]
[365364548,1749619840842,-440.63879191,0.00016438,2]
[365364550,1749619840852,-274.99169968,0.00016438,2]
[365364552,1749619840861,-357.31798964,0.00016438,2]
[365364554,1749619840870,-441.84670124,0.00016438,2]
[365364556,1749619840880,-441.18464521,0.00016438,2]
[365364558,1749619840889,-490.0,0.00016438,2]
[365364560,1749619840898,-490.0,0.00016438,2]
[365364562,1749619840908,-452.73756333,0.00016438,2]
[365364564,1749619840917,-490.0,0.00016438,2]
[365364566,1749619840927,-490.0,0.00016438,2]
[365364568,1749619840937,-490.0,0.00016438,2]
[365364570,1749619840946,-229.05875814,0.00016438,2]
[365364572,1749619840956,-250.0,0.00016438,2]
[365364574,1749619840965,-490.0,0.00016438,2]
[365364576,1749619840975,-490.0,0.00016438,2]
[365364578,1749619840984,-490.0,0.00016438,2]
[365364580,1749619840994,-407.65450014,0.00016438,2]
[365364582,1749619841003,-490.0,0.00016438,2]
[365364584,1749619841012,-490.0,0.00016438,2]
[365364586,1749619841022,-490.0,0.00016438,2]
[365364588,1749619841031,-490.0,0.00016438,2]
[365364590,1749619841040,-490.0,0.00016438,2]
[365364592,1749619841050,-490.0,0.00016438,2]
[365364594,1749619841060,-490.0,0.00016438,2]
[365364596,1749619841069,-490.0,0.00016438,2]
[365364598,1749619841078,-490.0,0.00016438,2]
[365364600,1749619841087,-409.08611716,0.00016438,2]
[365364602,1749619841096,-490.0,0.00016438,2]
[365364604,1749619841105,-490.0,0.00016438,2]
[365364606,1749619841114,-490.0,0.00016438,2]
[365364608,1749619841123,-621.93769077,0.00016438,2]
[365364610,1749619841132,-490.0,0.00016438,2]
[365364612,1749619841141,-386.45474386,0.00016438,2]
[365364614,1749619841150,-490.0,0.00016438,2]
[365364615,1749619841159,-490.0,0.00016438,2]
[365364617,1749619841168,-490.0,0.00016438,2]
[365364619,1749619841178,-490.0,0.00016438,2]
[365364621,1749619841187,-490.0,0.00016438,2]
[365364623,1749619841196,-559.34365514,0.00016438,2]
[365364625,1749619841205,-490.0,0.00016438,2]
[365364627,1749619841215,-490.0,0.00016438,2]
[365364630,1749619841224,-490.0,0.00016438,2]
[365364631,1749619841233,-490.0,0.00016438,2]
[365364634,1749619841243,-490.0,0.00016438,2]
[365364636,1749619841252,-490.0,0.00016438,2]
[365364638,1749619841262,-490.0,0.00016438,2]
[365364640,1749619841271,-490.0,0.00016438,2]
[365364642,1749619841281,-490.0,0.00016438,2]
[365364644,1749619841290,-490.0,0.00016438,2]
[365364646,1749619841301,-490.0,0.00016438,2]
[365364648,1749619841310,-490.0,0.00016438,2]
[365364650,1749619841319,-490.0,0.00016438,2]
[365364652,1749619841328,-490.0,0.00016438,2]
[365364653,1749619841335,-490.0,0.00016438,2]
[365364655,1749619841344,-464.84542758,0.00016438,2]
[365364658,1749619841354,-490.0,0.00016438,2]
[365364660,1749619841364,-202.17637009,0.00016438,2]
[365364662,1749619841373,-464.58621236,0.00016438,2]
[365364664,1749619841382,-277.81472457,0.00016438,2]
[365364666,1749619841391,-490.0,0.00016438,2]
[365364668,1749619841400,-490.0,0.00016438,2]
[365364670,1749619841409,-490.0,0.00016438,2]
[365364671,1749619841418,-490.0,0.00016438,2]
[365364673,1749619841426,-490.0,0.00016438,2]
[365364675,1749619841435,-460.0,0.00016438,2]
[365364677,1749619841444,-490.0,0.00016438,2]
[365364680,1749619841453,-490.0,0.00016438,2]
[365364682,1749619841464,-490.0,0.00016438,2]
[365364684,1749619841473,-455.76594703,0.00016438,2]
[365364686,1749619841482,-490.0,0.00016438,2]
[365364688,1749619841491,-490.0,0.00016438,2]
[365364690,1749619841500,-420.46589935,0.00016438,2]
[365364692,1749619841509,-441.00888475,0.00016438,2]
[365364694,1749619841518,-490.0,0.00016438,2]
[365364695,1749619841527,-193.33335112,0.00016438,2]
[365364698,1749619841537,-490.0,0.00016438,2]
[365364699,1749619841547,-327.40969623,0.00016438,2]
[365364701,1749619841558,-490.0,0.00016438,2]
[365364703,1749619841567,-490.0,0.00016438,2]
[365364706,1749619841576,-490.0,0.00016438,2]
[365364708,1749619841586,-480.0,0.00016438,2]
[365364710,1749619841596,-480.0,0.00016438,2]
[365364711,1749619841606,-480.0,0.00016438,2]
[365364713,1749619841615,-490.0,0.00016438,2]
[365364715,1749619841627,-442.49828884,0.00016438,2]
[365364717,1749619841637,-390.63482881,0.00016438,2]
[365364720,1749619841646,-434.64508438,0.00016438,2]
[365364722,1749619841655,-490.0,0.00016438,2]
[365364724,1749619841665,-490.0,0.00016438,2]
[365364726,1749619841674,-490.0,0.00016438,2]
[365364728,1749619841683,-490.0,0.00016438,2]
[365364730,1749619841692,-490.0,0.00016438,2]
[365364732,1749619841701,-490.0,0.00016438,2]
[365364734,1749619841710,-490.0,0.00016438,2]
[365364736,1749619841720,-490.0,0.00016438,2]
[365364738,1749619841729,-490.0,0.00016438,2]
[365364740,1749619841738,-456.18173438,0.00016438,2]
[365364742,1749619841747,-450.0,0.00016438,2]
[365364744,1749619841755,-364.48439656,0.00016438,2]
[365364746,1749619841764,-230.0,0.00016438,2]
[365364748,1749619841774,-490.0,0.00016438,2]
[365364750,1749619841783,-490.0,0.00016438,2]
[365364751,1749619841793,-490.0,0.00016438,2]
[365364753,1749619841802,-490.0,0.00016438,2]
[365364754,1749619841812,-490.0,0.00016438,2]
[365364755,1749619841821,-496.80893015,0.00016438,2]
[365364756,1749619841830,-490.0,0.00016438,2]
[365364757,1749619841839,-490.0,0.00016438,2]
[365364758,1749619841848,-490.0,0.00016438,2]
[365364759,1749619841858,-490.0,0.00016438,2]
[365364760,1749619841867,-500.87651297,0.00016438,2]
[365364761,1749619841876,-490.0,0.00016438,2]
[365364762,1749619841885,-490.0,0.00016438,2]
[365364763,1749619841895,-490.0,0.00016438,2]
[365364764,1749619841904,-490.0,0.00016438,2]
[365364765,1749619841913,-490.0,0.00016438,2]
[365364767,1749619841922,-490.0,0.00016438,2]
[365364769,1749619841931,-490.0,0.00016438,2]
[365364771,1749619841941,-490.0,0.00016438,2]
[365364773,1749619841950,-490.0,0.00016438,2]
[365364775,1749619841959,-490.0,0.00016438,2]
[365364777,1749619841969,-490.0,0.00016438,2]
[365364779,1749619841978,-167.31348568,0.00016438,2]
[365364781,1749619841988,-477.92574836,0.00016438,2]
[365364783,1749619841997,-490.0,0.00016438,2]
[365364785,1749619842006,-490.0,0.00016438,2]
[365364787,1749619842015,-490.0,0.00016438,2]
[365364789,1749619842024,-490.0,0.00016438,2]
[365364791,1749619842033,-490.0,0.00016438,2]
[365364793,1749619842042,-490.0,0.00016438,2]
[365364795,1749619842051,-490.0,0.00016438,2]
[365364797,1749619842061,-490.0,0.00016438,2]
[365364799,1749619842070,-490.0,0.00016438,2]
[365364801,1749619842079,-490.0,0.00016438,2]
[365364803,1749619842089,-490.0,0.00016438,2]
[365364805,1749619842099,-490.0,0.00016438,2]
[365364807,1749619842108,-490.0,0.00016438,2]
[365364809,1749619842117,-490.0,0.00016438,2]
[365364811,1749619842127,-490.0,0.00016438,2]
[365364813,1749619842136,-490.0,0.00016438,2]
[365364815,1749619842145,-490.0,0.00016438,2]
[365364817,1749619842154,-490.0,0.00016438,2]
[365364819,1749619842164,-434.31256132,0.00016438,2]
[365364821,1749619842173,-490.0,0.00016438,2]
[365364823,1749619842182,-490.0,0.00016438,2]
[365364825,1749619842191,-377.94574343,0.00016438,2]
[365364827,1749619842201,-490.0,0.00016438,2]
[365364829,1749619842211,-490.0,0.00016438,2]
[365364831,1749619842220,-171.56267384,0.00016438,2]
[365364833,1749619842229,-490.0,0.00016438,2]
[365364835,1749619842238,-490.0,0.00016438,2]
[365364837,1749619842248,-434.4386509,0.00016438,2]
[365364839,1749619842258,-490.0,0.00016438,2]
[365364841,1749619842268,-490.0,0.00016438,2]
[365364843,1749619842278,-490.0,0.00016438,2]
[365364845,1749619842288,-435.91428975,0.00016438,2]
[365364847,1749619842297,-490.0,0.00016438,2]
[365364849,1749619842308,-434.0244797,0.00016438,2]
[365364851,1749619842318,-490.0,0.00016438,2]
[365364853,1749619842328,-441.42688238,0.00016438,2]
[365364855,1749619842338,-605.79734785,0.00016438,2]
[365364857,1749619842348,-490.0,0.00016438,2]
[365364859,1749619842357,-490.0,0.00016438,2]
[365364861,1749619842366,-433.40687793,0.00016438,2]
[365364863,1749619842375,-490.0,0.00016438,2]
[365364865,1749619842385,-291.65776528,0.00016438,2]
[365364867,1749619842394,-435.7746282,0.00016438,2]
[365364869,1749619842403,-490.0,0.00016438,2]
[365364871,1749619842413,-490.0,0.00016438,2]
[365364873,1749619842422,-441.72943031,0.00016438,2]
[365364875,1749619842431,-490.0,0.00016438,2]
[365364877,1749619842440,-490.0,0.00016438,2]
[365364879,1749619842449,-490.0,0.00016438,2]
[365364881,1749619842459,-590.97822065,0.00016438,2]
[365364883,1749619842468,-440.93528068,0.00016438,2]
[365364885,1749619842478,-490.0,0.00016438,2]
[365364887,1749619842487,-474.11085814,0.00016438,2]
[365364889,1749619842496,-490.0,0.00016438,2]
[365364891,1749619842506,-490.0,0.00016438,2]
[365364893,1749619842515,-171.66086399,0.00016438,2]
[365364894,1749619842524,-490.0,0.00016438,2]
[365364897,1749619842535,-490.0,0.00016438,2]
[365364898,1749619842546,-589.6461952,0.00016438,2]
[365364900,1749619842557,-327.24600655,0.00016438,2]
[365364902,1749619842567,-490.0,0.00016438,2]
[365364904,1749619842576,-490.0,0.00016438,2]
[365364906,1749619842586,-433.89368163,0.00016438,2]
[365364908,1749619842595,-442.50133765,0.00016438,2]
[365364910,1749619842604,-490.0,0.00016438,2]
[365364912,1749619842613,-490.0,0.00016438,2]
[365364914,1749619842624,-490.0,0.00016438,2]
[365364916,1749619842634,-490.0,0.00016438,2]
[365364918,1749619842643,-490.0,0.00016438,2]
[365364920,1749619842652,-490.0,0.00016438,2]
[365364922,1749619842661,-436.63769954,0.00016438,2]
[365364924,1749619842670,-490.0,0.00016438,2]
[365364926,1749619842679,-490.0,0.00016438,2]
[365364928,1749619842688,-490.0,0.00016438,2]
[365364930,1749619842698,-490.0,0.00016438,2]
[365364932,1749619842707,-490.0,0.00016438,2]
[365364934,1749619842717,-490.0,0.00016438,2]
[365364936,1749619842726,-497.3596115,0.00016438,2]
[365364939,1749619842735,-490.0,0.00016438,2]
[365364940,1749619842745,-490.0,0.00016438,2]
[365364942,1749619842754,-439.53365112,0.00016438,2]
[365364944,1749619842763,-490.0,0.00016438,2]
[365364946,1749619842773,-490.0,0.00016438,2]
[365364948,1749619842782,-460.0,0.00016438,2]
[365364951,1749619842791,-490.0,0.00016438,2]
[365364953,1749619842801,-457.73778468,0.00016438,2]
[365364955,1749619842811,-435.56670578,0.00016438,2]
[365364956,1749619842820,-490.0,0.00016438,2]
[365364959,1749619842830,-440.19627734,0.00016438,2]
[365364961,1749619842840,-490.0,0.00016438,2]
[365364962,1749619842850,-490.0,0.00016438,2]
[365364965,1749619842859,-437.59239369,0.00016438,2]
[365364967,1749619842869,-439.98455496,0.00016438,2]
[365364969,1749619842878,-433.22681799,0.00016438,2]
[365364971,1749619842888,-436.73915426,0.00016438,2]
[365364973,1749619842897,-490.0,0.00016438,2]
[365364974,1749619842906,-273.35120594,0.00016438,2]
[365364976,1749619842915,-490.0,0.00016438,2]
[365364978,1749619842924,-490.0,0.00016438,2]
[365364980,1749619842935,-461.86501204,0.00016438,2]
[365364983,1749619842944,-365.55336613,0.00016438,2]
[365364985,1749619842954,-508.87205362,0.00016438,2]
[365364986,1749619842963,-484.39336253,0.00016438,2]
[365364988,1749619842973,-490.0,0.00016438,2]
[365364992,1749619842983,-380.47952525,0.00016438,2]
[365364994,1749619842993,-436.77719405,0.00016438,2]
[365364995,1749619843003,-445.94936751,0.00016438,2]
[365364998,1749619843013,-433.88865792,0.00016438,2]
[365365000,1749619843022,-490.0,0.00016438,2]
[365365002,1749619843032,-439.65468613,0.00016438,2]
[365365004,1749619843045,-490.0,0.00016438,2]
[365365006,1749619843054,-490.0,0.00016438,2]
[365365008,1749619843063,-441.30833888,0.00016438,2]
[365365010,1749619843072,-490.0,0.00016438,2]
[365365012,1749619843082,-433.60103927,0.00016438,2]
[365365013,1749619843103,-490.0,0.00016438,2]
[365365014,1749619843112,-490.0,0.00016438,2]
[365365015,1749619843122,-490.0,0.00016438,2]
[365365016,1749619843132,-490.0,0.00016438,2]
[365365017,1749619843142,-436.46748021,0.00016438,2]
[365365018,1749619843153,-444.22882021,0.00016438,2]
[365365019,1749619843163,-452.53755969,0.00016438,2]
[365365020,1749619843173,-490.0,0.00016438,2]
[365365021,1749619843183,-490.0,0.00016438,2]
[365365022,1749619843193,-490.0,0.00016438,2]
[365365023,1749619843203,-441.70254088,0.00016438,2]
[365365024,1749619843212,-490.0,0.00016438,2]
[365365025,1749619843222,-490.0,0.00016438,2]
[365365026,1749619843231,-490.0,0.00016438,2]
[365365027,1749619843241,-359.72075433,0.00016438,2]
[365365028,1749619843251,-490.0,0.00016438,2]
[365365029,1749619843260,-436.47469972,0.00016438,2]
[365365030,1749619843270,-426.34320295,0.00016438,2]
[365365031,1749619843280,-490.0,0.00016438,2]
[365365032,1749619843291,-460.0,0.00016438,2]
[365365033,1749619843301,-328.66354907,0.00016438,2]
[365365034,1749619843310,-490.0,0.00016438,2]
[365365035,1749619843319,-432.25261825,0.00016438,2]
[365365036,1749619843328,-490.0,0.00016438,2]
[365365037,1749619843337,-415.68296707,0.00016438,2]
[365365038,1749619843347,-490.0,0.00016438,2]
[365365039,1749619843356,-596.37745016,0.00016438,2]
[365365040,1749619843365,-490.0,0.00016438,2]
[365365041,1749619843374,-490.0,0.00016438,2]
[365365042,1749619843393,-490.0,0.00016438,2]
[365365043,1749619843403,-231.98240267,0.00016438,2]
[365365044,1749619843413,-367.00287295,0.00016438,2]
[365365045,1749619843422,-490.0,0.00016438,2]
[365365046,1749619843432,-490.0,0.00016438,2]
[365365047,1749619843441,-434.7526266,0.00016438,2]
[365365048,1749619843451,-490.0,0.00016438,2]
[365365049,1749619843460,-490.0,0.00016438,2]
[365365050,1749619843470,-490.0,0.00016438,2]
[365365052,1749619843479,-490.0,0.00016438,2]
[365365054,1749619843489,-490.0,0.00016438,2]
[365365057,1749619843498,-422.59992008,0.00016438,2]
[365365059,1749619843507,-490.0,0.00016438,2]
[365365061,1749619843517,-354.38022372,0.00016438,2]
[365365063,1749619843526,-490.0,0.00016438,2]
[365365065,1749619843536,-490.0,0.00016438,2]
[365365067,1749619843548,-490.0,0.00016438,2]
[365365069,1749619843558,-408.59035299,0.00016438,2]
[365365070,1749619843567,-490.0,0.00016438,2]
[365365072,1749619843577,-490.0,0.00016438,2]
[365365074,1749619843586,-436.53959059,0.00016438,2]
[365365076,1749619843596,-490.0,0.00016438,2]
[365365078,1749619843606,-490.0,0.00016438,2]
[365365080,1749619843616,-490.0,0.00016438,2]
[365365082,1749619843627,-369.8445997,0.00016438,2]
[365365084,1749619843636,-435.24669242,0.00016438,2]
[365365086,1749619843646,-467.79169126,0.00016438,2]
[365365088,1749619843655,-490.0,0.00016438,2]
[365365090,1749619843665,-477.78398705,0.00016438,2]
[365365092,1749619843674,-490.0,0.00016438,2]
[365365094,1749619843683,-482.11832571,0.00016438,2]
[365365096,1749619843692,-434.27196091,0.00016438,2]
[365365098,1749619843702,-436.02892259,0.00016438,2]
[365365100,1749619843711,-490.0,0.00016438,2]
[365365102,1749619843720,-490.0,0.00016438,2]
[365365104,1749619843730,-490.0,0.00016438,2]
[365365106,1749619843740,-353.34086956,0.00016438,2]
[365365108,1749619843749,-490.0,0.00016438,2]
[365365110,1749619843758,-490.0,0.00016438,2]
[365365112,1749619843768,-202.04873406,0.00016438,2]
[365365114,1749619843777,-352.39522684,0.00016438,2]
[365365116,1749619843787,-490.0,0.00016438,2]
[365365118,1749619843799,-464.97038348,0.00016438,2]
[365365120,1749619843809,-490.0,0.00016438,2]
[365365122,1749619843818,-490.0,0.00016438,2]
[365365124,1749619843828,-490.0,0.00016438,2]
[365365126,1749619843838,-361.09171173,0.00016438,2]
[365365128,1749619843847,-490.0,0.00016438,2]
[365365130,1749619843857,-435.92908417,0.00016438,2]
[365365132,1749619843867,-490.0,0.00016438,2]
[365365134,1749619843876,-500.0,0.00016438,2]
[365365136,1749619843885,-480.70107193,0.00016438,2]
[365365138,1749619843895,-490.0,0.00016438,2]
[365365140,1749619843904,-490.0,0.00016438,2]
[365365142,1749619843913,-490.0,0.00016438,2]
[365365144,1749619843923,-490.0,0.00016438,2]
[365365146,1749619843932,-490.0,0.00016438,2]
[365365148,1749619843941,-490.0,0.00016438,2]
[365365150,1749619843951,-490.0,0.00016438,2]
[365365152,1749619843961,-490.0,0.00016438,2]
[365365155,1749619843971,-490.0,0.00016438,2]
[365365157,1749619843980,-421.49960726,0.00016438,2]
[365365159,1749619843989,-396.99185549,0.00016438,2]
[365365161,1749619843999,-490.0,0.00016438,2]
[365365163,1749619844008,-490.0,0.00016438,2]
[365365165,1749619844017,-490.0,0.00016438,2]
[365365167,1749619844027,-490.0,0.00016438,2]
[365365169,1749619844037,-490.0,0.00016438,2]
[365365171,1749619844047,-353.99891317,0.00016438,2]
[365365172,1749619844057,-490.0,0.00016438,2]
[365365174,1749619844066,-490.0,0.00016438,2]
[365365177,1749619844076,-490.0,0.00016438,2]
[365365178,1749619844085,-505.10079348,0.00016438,2]
[365365181,1749619844095,-490.0,0.00016438,2]
[365365183,1749619844105,-300.0,0.00016438,2]
[365365185,1749619844115,-438.87514429,0.00016438,2]
[365365187,1749619844126,-490.0,0.00016438,2]
[365365189,1749619844135,-490.0,0.00016438,2]
[365365191,1749619844145,-433.19303793,0.00016438,2]
[365365193,1749619844154,-490.0,0.00016438,2]
[365365195,1749619844164,-490.0,0.00016438,2]
[365365197,1749619844174,-490.0,0.00016438,2]
[365365199,1749619844183,-490.0,0.00016438,2]
[365365201,1749619844193,-490.0,0.00016438,2]
[365365203,1749619844203,-490.0,0.00016438,2]
[365365205,1749619844212,-350.0,0.00016438,2]
[365365207,1749619844222,-637.47100726,0.00016438,2]
[365365209,1749619844231,-490.0,0.00016438,2]
[365365211,1749619844241,-490.0,0.00016438,2]
[365365213,1749619844250,-490.0,0.00016438,2]
[365365215,1749619844260,-490.0,0.00016438,2]
[365365217,1749619844269,-490.0,0.00016438,2]
[365365219,1749619844279,-490.0,0.00016438,2]
[365365221,1749619844288,-490.0,0.00016438,2]
[365365223,1749619844298,-490.0,0.00016438,2]
[365365225,1749619844307,-490.0,0.00016438,2]
[365365227,1749619844317,-490.0,0.00016438,2]
[365365229,1749619844326,-490.0,0.00016438,2]
[365365231,1749619844336,-477.49009338,0.00016438,2]
[365365233,1749619844345,-490.0,0.00016438,2]
[365365235,1749619844355,-490.0,0.00016438,2]
[365365237,1749619844364,-536.81,0.00016438,2]
[365365239,1749619844375,-434.5156874,0.00016438,2]
[365365241,1749619844384,-490.0,0.00016438,2]
[365365243,1749619844394,-490.0,0.00016438,2]
[365365245,1749619844403,-223.1823678,0.00016438,2]
[365365247,1749619844413,-469.26774912,0.00016438,2]
[365365249,1749619844423,-490.0,0.00016438,2]
[365365251,1749619844432,-490.0,0.00016438,2]
[365365253,1749619844443,-500.0,0.00016438,2]
[365365255,1749619844452,-490.0,0.00016438,2]
[365365257,1749619844463,-472.35713342,0.00016438,2]
[365365259,1749619844473,-481.26417973,0.00016438,2]
[365365261,1749619844482,-490.0,0.00016438,2]
[365365264,1749619844492,-490.0,0.00016438,2]
[365365266,1749619844501,-194.38453783,0.00016438,2]
[365365268,1749619844511,-860.96,0.00016438,2]
[365365270,1749619844522,-490.0,0.00016438,2]
[365365271,1749619844531,-490.0,0.00016438,2]
[365365274,1749619844541,-460.0,0.00016438,2]
[365365276,1749619844555,-490.0,0.00016438,2]
[365365278,1749619844565,-490.0,0.00016438,2]
[365365280,1749619844574,-490.0,0.00016438,2]
[365365281,1749619844583,-456.43058165,0.00016438,2]
[365365299,1749619844836,-490.0,0.00016438,2]
[365365301,1749619844847,-490.0,0.00016438,2]
[365365303,1749619844857,-500.0,0.00016438,2]
[365365305,1749619844867,-490.0,0.00016438,2]
[365365307,1749619844877,-490.0,0.00016438,2]
[365365309,1749619844886,-490.0,0.00016438,2]
[365365311,1749619844896,-490.0,0.00016438,2]
[365365313,1749619844906,-490.0,0.00016438,2]
[365365315,1749619844915,-490.0,0.00016438,2]
[365365317,1749619844926,-490.0,0.00016438,2]
[365365319,1749619844935,-490.0,0.00016438,2]
[365365321,1749619844945,-479.35978469,0.00016438,2]
[365365323,1749619844954,-193.15,0.00016438,2]
[365365325,1749619844963,-490.0,0.00016438,2]
[365365327,1749619844973,-490.0,0.00016438,2]
[365365329,1749619844984,-414.99506999,0.00016438,2]
[365365331,1749619844994,-490.0,0.00016438,2]
[365365333,1749619845004,-490.0,0.00016438,2]
[365365335,1749619845014,-490.0,0.00016438,2]
[365365337,1749619845024,-310.0,0.00016438,2]
[365365339,1749619845034,-490.0,0.00016438,2]
[365365341,1749619845044,-490.0,0.00016438,2]
[365365343,1749619845055,-490.0,0.00016438,2]
[365365345,1749619845065,-490.0,0.00016438,2]
[365365347,1749619845075,-353.71,0.00016438,2]
[365365349,1749619845086,-490.0,0.00016438,2]
[365365351,1749619845096,-253.56000875,0.00016438,2]
[365365353,1749619845106,-490.0,0.00016438,2]
[365365355,1749619845116,-490.0,0.00016438,2]
[365365357,1749619845126,-490.0,0.00016438,2]
[365365359,1749619845136,-490.0,0.00016438,2]
[365365361,1749619845147,-355.04,0.00016438,2]
[365365363,1749619845157,-487.6215676,0.00016438,2]
[365365365,1749619845167,-493.0,0.00016438,2]
[365365368,1749619845177,-490.0,0.00016438,2]
[365365369,1749619845187,-288.86,0.00016438,2]
[365365372,1749619845198,-600.55683558,0.00016438,2]
[365365374,1749619845208,-490.0,0.00016438,2]
[365365376,1749619845218,-490.0,0.00016438,2]
[365365378,1749619845228,-490.0,0.00016438,2]
[365365380,1749619845237,-490.0,0.00016438,2]
[365365382,1749619845247,-402.19,0.00016438,2]
[365365384,1749619845256,-490.0,0.00016438,2]
[365365386,1749619845266,-490.0,0.00016438,2]
[365365388,1749619845276,-477.24361219,0.00016438,2]
[365365390,1749619845286,-490.0,0.00016438,2]
[365365392,1749619845297,-490.0,0.00016438,2]
[365365394,1749619845306,-503.84,0.00016438,2]
[365365396,1749619845316,-490.0,0.00016438,2]
[365365398,1749619845325,-490.0,0.00016438,2]
[365365400,1749619845335,-490.0,0.00016438,2]
[365365402,1749619845344,-490.0,0.00016438,2]
[365365404,1749619845353,-490.0,0.00016438,2]
[365365406,1749619845363,-490.0,0.00016438,2]
[365365408,1749619845373,-490.0,0.00016438,2]
[365365410,1749619845383,-490.0,0.00016438,2]
[365365412,1749619845393,-490.0,0.00016438,2]
[365365414,1749619845403,-490.0,0.00016438,2]
[365365416,1749619845412,-490.0,0.00016438,2]
[365365418,1749619845422,-490.0,0.00016438,2]
[365365420,1749619845432,-490.0,0.00016438,2]
[365365422,1749619845441,-490.0,0.00016438,2]
[365365424,1749619845450,-490.0,0.00016438,2]
[365365426,1749619845460,-490.0,0.00016438,2]
[365365428,1749619845469,-480.0,0.00016438,2]
[365365430,1749619845479,-490.0,0.00016438,2]
[365365432,1749619845489,-490.0,0.00016438,2]
[365365434,1749619845498,-490.0,0.00016438,2]
[365365436,1749619845508,-490.0,0.00016438,2]
[365365438,1749619845517,-490.0,0.00016438,2]
[365365440,1749619845529,-490.0,0.00016438,2]
[365365442,1749619845538,-490.0,0.00016438,2]
[365365444,1749619845553,-490.0,0.00016438,2]
[365365446,1749619845563,-462.49755998,0.00016438,2]
[365365449,1749619845572,-355.46040702,0.00016438,2]
[365365451,1749619845582,-561.16577332,0.00016438,2]
[365365453,1749619845593,-490.0,0.00016438,2]
[365365454,1749619845602,-490.0,0.00016438,2]
[365365457,1749619845612,-490.0,0.00016438,2]
[365365458,1749619845621,-490.0,0.00016438,2]
[365365460,1749619845632,-490.0,0.00016438,2]
[365365463,1749619845641,-490.0,0.00016438,2]
[365365465,1749619845651,-490.0,0.00016438,2]
[365365467,1749619845664,-171.51,0.00016438,2]
[365365469,1749619845674,-480.0,0.00016438,2]
[365365471,1749619845684,-623.95,0.00016438,2]
[365365473,1749619845695,-490.0,0.00016438,2]